Workbook

Sheet Disclaimer
A1: This spreadsheet relating to the updates to Guideline A-5 “Atmospheric Emissions from Stationary Combustion Turbines” has been prepared by the Ontario Ministry of the Environment, Conservation and Parks and finalized as of March 2021.
A2: The calculations are based on the “Guidelines for the Reduction of Nitrogen Oxide Emissions from Natural Gas-fuelled Stationary Combustion Turbines” published by Environment and Climate Change Canada in 2017.
A3: This represents the sample calculations for which the results are shown in Appendix B of Guideline A-5. This document is being shared as a courtesy and should not be relied upon, rather all calculations are the responsibility of the user to be checked and verified.
A4: This workbook includes two (2) calculation worksheets, B.1 for "Power Generation" that includes both simple cycle and combined cycle configurations, and B.2 for "Cogeneration" (CHP) that likewise includes both simple cycle and combined cycle configurations.
A5: Any concerns, comments, identification of errors or suggestions for improvement should be communicated to Steven Law, P. Eng. by email at Steven.Law@ontario.ca.

Sheet B.1 Power Generation
A1: Parameter | B1: Units | C1: B.1-Site 1 | D1: B.1-Site 2 | E1: B.1-Site 3 | F1: B.1-Site 4
A2: Heat input to combustion turbine | B2: GJ/hr | C2: 1 | D2: 40 | E2: 190 | F2: 400
A3: Heat input to combustion turbine | B3: MW | C3: =C2/3.6 -> 0.2777777778 | D3: =D2/3.6 -> 11.11111111 | E3: =E2/3.6 -> 52.77777778 | F3: =F2/3.6 -> 111.1111111
A4: Heat input to auxiliary burner(s) | B4: GJ/hr | C4: 0 | D4: 0 | E4: 0 | F4: 270
A5: Heat input to auxiliary burner(s) | B5: MW | C5: =C4/3.6 -> 0 | D5: =D4/3.6 -> 0 | E5: =E4/3.6 -> 0 | F5: =F4/3.6 -> 75
A6: Cycle configuration | B6: - | C6: simple | D6: simple | E6: simple | F6: combined
A7: Power output, combustion turbine | B7: MW | C7: 0.07 | D7: 3 | E7: 15 | F7: 45
A8: Power output, Rankine cycle turbine | B8: MW | C8: 0 | D8: 0 | E8: 0 | F8: 55
A9: Total power generation/output | B9: MW | C9: =C7+C8 -> 0.07 | D9: =D7+D8 -> 3 | E9: =E7+E8 -> 15 | F9: =F7+F8 -> 100
A10: Thermal efficiency (Equation 10) | B10: % | C10: =C7/C3 -> 0.252 | D10: =D7/D3 -> 0.27 | E10: =E7/E3 -> 0.2842105263 | F10: =(F7+F8)/(F3+F5) -> 0.5373134328
A11: F-factor for natural gas on a dry basis | B11: DSm³/GJ | C11: 240 | D11: 240 | E11: 240 | F11: 240
A12: Output-based NOx emission limit (Table 1) | B12: g/GJ | C12: 290 | D12: 500 | E12: 140 | F12: 140
A13: Calculated maximum NOx emission rate (Equation 5) | B13: g/hr | C13: =(C7*3.6)*C12 -> 73.08 | D13: =(D7*3.6)*D12 -> 5400 | E13: =(E7*3.6)*E12 -> 7560 | F13: =((F7+F8)*3.6)*F12 -> 50400
A14: Calculated maximum NOx emission concentration (Equation 2) | B14: ppmv | C14: =C13/C11/(C2+C4)/(0.00188)*(20.9-15)/20.9 -> 45.72304795 | D14: =D13/D11/(D2+D4)/(0.00188)*(20.9-15)/20.9 -> 84.46375853 | E14: =E13/E11/(E2+E4)/(0.00188)*(20.9-15)/20.9 -> 24.89458146 | F14: =F13/F11/(F2+F4)/(0.00188)*(20.9-15)/20.9 -> 47.06438286
A15: Applicable NOx emission limit (Table 2 or Equation 8) (note 1) | B15: ppmv | C15: 42 | D15: 75 | E15: =E14 -> 24.89458146 | F15: =F14 -> 47.06438286
A16: 95% of NOx as NO | B16: ppmv | C16: =C15*0.95/46.01*30.1 -> 26.10280374 | D16: =D15*0.95/46.01*30.1 -> 46.61214953 | E16: =E15*0.95/46.01*30.1 -> 15.47186605 | F16: =F15*0.95/46.01*30.1 -> 29.25029402
A17: 5% of NOx as NO2 | B17: ppmv | C17: =C15*0.05 -> 2.1 | D17: =D15*0.05 -> 3.75 | E17: =E15*0.05 -> 1.244729073 | F17: =F15*0.05 -> 2.353219143
A19: Note 1: Table 2 applies for Sites 1 and 2, whereas Equation 8 applies for Sites 3 and 4

Sheet B.2 Cogeneration
A1: Parameter | B1: Units | C1: B.2-Site 1 | D1: B.2-Site 2 | E1: B.2-Site 3 | F1: B.2-Site 4
A2: Heat input to combustion turbine | B2: GJ/hr | C2: 1 | D2: 40 | E2: 190 | F2: 400
A3: Heat input to combustion turbine | B3: MW | C3: =C2/3.6 -> 0.2777777778 | D3: =D2/3.6 -> 11.11111111 | E3: =E2/3.6 -> 52.77777778 | F3: =F2/3.6 -> 111.1111111
A4: Heat input to auxiliary burner(s) | B4: GJ/hr | C4: 0 | D4: 0 | E4: 90 | F4: 270
A5: Heat input to auxiliary burner(s) | B5: MW | C5: =C4/3.6 -> 0 | D5: =D4/3.6 -> 0 | E5: =E4/3.6 -> 25 | F5: =F4/3.6 -> 75
A6: Cycle configuration | B6: - | C6: simple | D6: simple | E6: simple | F6: combined
A7: Power output, combustion turbine | B7: MW | C7: 0.07 | D7: 3 | E7: 15 | F7: 45
A8: Power output, Rankine cycle turbine | B8: MW | C8: 0 | D8: 0 | E8: 0 | F8: 55
A9: Total power generation/output | B9: MW | C9: =C7+C8 -> 0.07 | D9: =D7+D8 -> 3 | E9: =E7+E8 -> 15 | F9: =F7+F8 -> 100
A10: Heat recovery, combustion turbine | B10: MW | C10: 0.14 | D10: 5.7 | E10: 32 | F10: 30
A11: Heat recovery, auxiliary burner(s) | B11: MW | C11: 0 | D11: 0 | E11: 18 | F11: 30
A12: Total heat recovery / output | B12: MW | C12: =C10+C11 -> 0.14 | D12: =D10+D11 -> 5.7 | E12: =E10+E11 -> 50 | F12: =F10+F11 -> 60
A13: Power efficiency | B13: % | C13: =C7/C3 -> 0.252 | D13: =D7/D3 -> 0.27 | E13: =E7/E3 -> 0.2842105263 | F13: =(F7+F8)/(F3+F5) -> 0.5373134328
A14: Heat recovery efficiency | B14: % | C14: =(C10+C11)/(C3+C5) -> 0.504 | D14: =(D10+D11)/(D3+D5) -> 0.513 | E14: =(E10+E11)/(E3+E5) -> 0.6428571429 | F14: =(F10+F11)/(F3+F5) -> 0.3223880597
A15: Thermal efficiency (Equation 10) | B15: % | C15: =(C7+C10+C11)/(C3+C5) -> 0.756 | D15: =(D7+D10+D11)/(D3+D5) -> 0.783 | E15: =(E7+E10+E11)/(E3+E5) -> 0.8357142857 | F15: =(F7+F8+F10+F11)/(F3+F5) -> 0.8597014925
A16: Cogeneration coefficient | B16: g/GJ | C16: 40 | D16: 40 | E16: 40 | F16: 40
A17: F-factor for natural gas on a dry basis | B17: DSm³/GJ | C17: 240 | D17: 240 | E17: 240 | F17: 240
A18: Output-based NOx emission limit (Table 1) | B18: g/GJ | C18: 290 | D18: 500 | E18: 140 | F18: 85
A19: Calculated maximum NOx emission rate (Equation 6) | B19: g/hr | C19: =(C7*3.6)*C18+(C10+C11)*3.6*C16 -> 93.24 | D19: =(D7*3.6)*D18+(D10+D11)*3.6*D16 -> 6220.8 | E19: =(E7*3.6)*E18+(E10+E11)*3.6*E16 -> 14760 | F19: =(F7*3.6)*F18+(F10+F11)*3.6*F16 -> 22410
A20: Calculated maximum NOx emission concentration (Equation 2) | B20: ppmv | C20: =C19/C17/(C2+C4)/(0.00188)*(20.9-15)/20.9 -> 58.33630256 | D20: =D19/D17/(D2+D4)/(0.00188)*(20.9-15)/20.9 -> 97.30224982 | E20: =E19/E17/(E2+E4)/(0.00188)*(20.9-15)/20.9 -> 32.98108666 | F20: =F19/F17/(F2+F4)/(0.00188)*(20.9-15)/20.9 -> 20.92684166
A21: Applicable NOx emission limit (Table 3 or Equation 8) (note 1) | B21: ppmv | C21: 60 | D21: 100 | E21: =E20 -> 32.98108666 | F21: =F20 -> 20.92684166
A22: 95% of NOx as NO | B22: ppmv | C22: =C21*0.95/46.01*30.1 -> 37.28971963 | D22: =D21*0.95/46.01*30.1 -> 62.14953271 | E22: =E21*0.95/46.01*30.1 -> 20.49759124 | F22: =F21*0.95/46.01*30.1 -> 13.00593431
A23: 5% of NOx as NO2 | B23: ppmv | C23: =C21*0.05 -> 3 | D23: =D21*0.05 -> 5 | E23: =E21*0.05 -> 1.649054333 | F23: =F21*0.05 -> 1.046342083
A25: Note 1: Table 3 applies for Sites 1 and 2, whereas Equation 8 applies for Sites 3 and 4
